Cogmind - Beta 13 @@@ ROGUE MODE // 2024.07.11 @ 12:23:26 Player: ThatBishHoly Result: Destroyed by Y-45 Defender with Beam Rifle Performance ------------- Evolutions (2) 1000 Regions Visited (3) 600 Robots Destroyed (28) 140 Value Destroyed (750) 750 Prototype IDs (5) 100 Alien Tech Used (0) 0 Bonus (0) 0 TOTAL SCORE: 2590 Bonus ------- None Cogmind --------- Core Integrity 0/550 Matter 43/300 Energy 100/100 System Corruption 0% Temperature Cool (9) Movement Core (900) Ox17 Location -8/Materials Parts ------- > --- POWER (1) -------- (None) > --- PROPULSION (4) --- (None) > --- UTILITY (4) ------ High-capacity Storage Unit Improved Field Recycling Unit > --- WEAPON (2) ------- (None) > --- INVENTORY (20) --- Medium Matter Pod (0) Compact Matter Pod (0) Advanced ECM Suite Precision Shock Rifle Precision Shock Rifle Missile Launcher Missile Launcher Missile Launcher Peak State ------------ > --- POWER ------------ (None) > --- PROPULSION ------- Advanced Treads > --- UTILITY ---------- Improved Heat Sink High-capacity Storage Unit Recoil Stabilizer Improved Field Recycling Unit > --- WEAPON ----------- Precision Shock Rifle Precision Shock Rifle > --- INVENTORY -------- Medium Matter Pod Compact Matter Pod Advanced ECM Suite Precision Shock Rifle Precision Shock Rifle Missile Launcher Missile Launcher Missile Launcher [Rating: 26] Favorites ----------- Power Ion Engine Engine Ion Engine Propulsion Aluminum Leg Treads Advanced Treads Leg Aluminum Leg Wheel Wheel Utility Small Storage Unit Device Improved Heat Sink Storage Small Storage Unit Protection Hardened Light Armor Plating Weapon Particle Gun Energy Gun Particle Gun Ballistic Cannon Flak Cannon Launcher Missile Launcher Build | -11 -10 -9 -8 ------- Run | Yrd Mat Mat Mat Slots Evolved 4 | . . 2 2 Power . | . . . . Propulsion 2 | . . 1 1 Utility 2 | . . 1 1 Weapon . | . . . . Parts Attached 40 | 6 6 20 8 Power 2 | 1 1 . . Engine 2 | 1 1 . . Core . | . . . . Reactor . | . . . . Propulsion 13 | 2 2 8 1 Treads 1 | . . . 1 Leg 7 | . 2 5 . Wheel 5 | 2 . 3 . Hover . | . . . . Flight . | . . . . Utility 11 | 1 1 6 3 Device 5 | . . 3 2 Storage 2 | 1 . . 1 Processor . | . . . . Hackware . | . . . . Protection 4 | . 1 3 . Artifact . | . . . . Weapon 14 | 2 2 6 4 Energy Gun 8 | 2 2 2 2 Energy Cannon . | . . . . Ballistic Gun . | . . . . Ballistic Cannon 3 | . . 3 . Launcher 3 | . . 1 2 Special Weapon . | . . . . Impact Weapon . | . . . . Slashing Weapon . | . . . . Piercing Weapon . | . . . . Special Melee Weapon . | . . . . Unidentified Prototypes 3 | . . 2 1 Parts Lost 21 | . 2 14 5 Power 2 | . 1 1 . Propulsion 8 | . 1 6 1 Utility 6 | . . 4 2 Weapon 5 | . . 3 2 Highest Loss Streak 5 | . 1 4 5 To Critical Strikes . | . . . . Average Slot Usage (%) 75 | . 91 89 50 Engine 6 | . 13 8 . Treads 3 | . . . 8 Leg 15 | . 21 25 . Wheel 2 | . 6 3 . Device 12 | . . 10 22 Storage 8 | . 14 9 4 Protection 5 | . 7 9 . Energy Gun 13 | . 28 14 4 Ballistic Cannon 2 | . . 6 . Launcher 4 | . . 1 10 Naked Turns . | . . . . Heaviest Build 64 | 10 19 29 64 Greatest Support 36 | 26 26 36 22 Greatest Overweight (x) 17 | . . 2 17 Average Overweight (x) . | . . . . Largest Inventory Capacity 20 | 8 8 8 20 Average Capacity 9 | 6 8 7 13 Most Carried 8 | 5 6 8 8 Average Carried 4 | 1 2 4 6 Final Capacity 20 | 8 8 5 20 Final Carried 8 | . 4 5 8 Class Distribution -------------------- 53% | Mutant 46% | Scavenger-Mutant Dominant Class ---------------- Scavenger-Mutant | -10/Materials Scavenger-Mutant | -9/Materials Mutant | -8/Materials Resources | -11 -10 -9 -8 ----------- Run | Yrd Mat Mat Mat Matter Collected 568 | 255 35 278 . Remotely 26 | . . 26 . Salvage Created 821 | . 185 636 . Parts 40 | . 9 31 . Haulers Intercepted 1 | . . 1 . Recyclers Shooed 3 | . . 3 . Parts Field Recycled 4 | . . . 4 Retrieved Matter 48 | . . . 48 Parts Self-Destructed . | . . . . Prevented . | . . . . Kills | -11 -10 -9 -8 ------- Run | Yrd Mat Mat Mat Combat Hostiles Destroyed 21 | . 4 17 . Guns 8 | . 4 4 . Cannons 6 | . . 6 . AOE 7 | . . 7 . Classes Destroyed 7 | . 1 6 . Worker 2 | . . 2 . Hauler 1 | . . 1 . Recycler 3 | . . 3 . Watcher 1 | . . 1 . Swarmer 4 | . . 4 . Grunt 15 | . 4 11 . Sentry 2 | . . 2 . Best Kill Streak 11 | . 2 11 . Combat Bots Only 5 | . 2 5 . Max Kills in Single Turn 5 | . 2 5 . Gunslinging 1 | . 1 . . Exploded 3 | . . 3 . Melee . | . . . . Uniques/NPCs Destroyed . | . . . . Combat | -11 -10 -9 -8 -------- Run | Yrd Mat Mat Mat Hostile Shots Fired 354 | . 37 213 104 Missed 115 | . 10 69 36 Damage Taken 3174 | . 354 1686 1134 Core 911 | . 118 231 562 Absorbed by Shields . | . . . . Core Remaining (%) 64 | 100 52 42 . Volleys Fired 85 | . 16 68 1 Largest 2 | . 2 2 2 Hottest 130 | . 130 130 110 Shots Fired 144 | . 31 111 2 Gun 101 | . 31 68 2 Cannon 34 | . . 34 . Launcher 9 | . . 9 . Special . | . . . . Kinetic 34 | . . 34 . Thermal 96 | . 31 65 . Explosive 9 | . . 9 . Electromagnetic 5 | . . 3 2 Robot Hit Streak 7 | . 4 7 1 Robot Miss Streak 10 | . 2 10 1 Penetration Max . | . . . . Secondary Targets 2 | . 2 . . Max Gunslinging Chain 1 | . 1 . . Shots Hit Robots 88 | . 20 67 1 Core Hits 72 | . 12 60 . Critical Kills . | . . . . Critical Parts Destroyed . | . . . . Critical Strikes 2 | . . 2 . Burn 2 | . . 2 . Melee Attacks . | . . . . Impact . | . . . . Slashing . | . . . . Piercing . | . . . . Sneak Attacks . | . . . . Combat Hostiles . | . . . . Follow-up Attacks . | . . . . Damage Inflicted 1805 | . 235 1544 26 Guns 719 | . 219 478 22 Cannons 453 | . . 453 . Explosions 575 | . . 575 . Melee . | . . . . Ramming 58 | . 16 38 4 Kinetic 453 | . . 453 . Thermal 667 | . 219 448 . Explosive 575 | . . 575 . Electromagnetic 52 | . . 30 22 Impact . | . . . . Slashing . | . . . . Piercing . | . . . . Highest Corruption 3 | . 3 . . Average Corruption 3 | . 3 . . Corruption Purged . | . . . . Corruption Blocked . | . . . . Effects 5 | . 5 . . Message Errors 2 | . 2 . . Matter Fused 1 | . 1 . . Heat Flow Errors 1 | . 1 . . Weapon Failures 1 | . 1 . . Overload Shots . | . . . . Overflow Damage . | . . . . Projectiles . | . . . . Explosions . | . . . . Melee . | . . . . Knockbacks 20 | . . 20 . Impact 1 | . . 1 . Kinetic 19 | . . 19 . Secondary . | . . . . Self-Inflicted Damage 36 | . 7 29 . Shots 2 | . . 2 . Rammed 9 | . 7 1 1 Targets Rammed 22 | . 7 14 1 Kicked 13 | . . 13 . Crushed . | . . . . Highest Temperature 610 | . 166 610 . Average Temperature 141 | . 59 162 . Received Heat Transfer 1428 | . 225 627 576 Effects 26 | . . 26 . Shutdowns 4 | . . 4 . Energy Bleed 4 | . . 4 . Interference 6 | . . 6 . Matter Decay 3 | . . 3 . Short Circuit 2 | . . 2 . Damage (minor) 1 | . . 1 . Damage (major) 5 | . . 5 . Damage (core) 1 | . . 1 . Siege Activations . | . . . . Robots Corrupted . | . . . . Combat Hostiles . | . . . . Parts Fried . | . . . . Impact Corruptions . | . . . . Robots Melted . | . . . . Combat Hostiles . | . . . . Parts Melted 2 | . 1 1 . Heat Transferred 1721 | . 500 1221 . Parts Sabotaged . | . . . . Parts Stolen . | . . . . Parts Stripped . | . . . . Power Chain Reactions . | . . . . Alert | -11 -10 -9 -8 ------- Run | Yrd Mat Mat Mat Peak Influence 353 | . 140 353 131 Initial 131 | . . . 131 Average 110 | . 82 161 69 Maximum Alert Level 1 | . . 1 . Low Security (%) 80 | 100 100 55 100 Level 1 19 | . . 44 . Level 2 . | . . . . Level 3 . | . . . . Level 4 . | . . . . Level 5 . | . . . . High Security . | . . . . Max Security . | . . . . Squads Dispatched 3 | . . 3 . Investigation 2 | . . 2 . Extermination . | . . . . Reinforcement 1 | . . 1 . Assault . | . . . . Garrison . | . . . . Intercept . | . . . . Searches Triggered . | . . . . Construction Impeded . | . . . . Haulers Reinforced . | . . . . Active Scanning Responses . | . . . . Cargo Convoy Interrupts . | . . . . Stealth | -11 -10 -9 -8 --------- Run | Yrd Mat Mat Mat Distress Signals 2 | . . 2 . Communications Jammed . | . . . . Distress Signals . | . . . . Times Spotted 57 | . 7 44 6 Peak Tracking Total 10 | . 4 10 4 Tactical Retreats 9 | . . 7 2 Traps | -11 -10 -9 -8 ------- Run | Yrd Mat Mat Mat Traps Triggered 1 | . . 1 . Indirectly . | . . . . Trap Hack Attempts . | . . . . Triggered . | . . . . Disarmed . | . . . . Reprogrammed . | . . . . Reused . | . . . . Traps Extracted . | . . . . Installed . | . . . . Triggered . | . . . . Machines | -11 -10 -9 -8 ---------- Run | Yrd Mat Mat Mat Machines Disabled 4 | . 1 3 . Max in Single Turn 2 | . 1 2 . Machines Repaired . | . . . . Machines Dismantled . | . . . . Machines Sabotaged . | . . . . Overloaded Fab Kills . | . . . . Hacking | -11 -10 -9 -8 --------- Run | Yrd Mat Mat Mat Machines Accessed 6 | . 1 3 2 Terminals 5 | . 1 2 2 Fabricators . | . . . . Repair Stations . | . . . . Recycling Units 1 | . . 1 . Scanalyzers . | . . . . Garrison Access . | . . . . Total Hacks 13 | . 2 8 3 Successful 4 | . . 2 2 Failed 9 | . 2 6 1 Catastrophic 1 | . . 1 . Database Lockouts . | . . . . Manual . | . . . . Terminals 11 | . 2 6 3 Fabricators . | . . . . Repair Stations . | . . . . Recycling Units 2 | . . 2 . Scanalyzers . | . . . . Garrison Access . | . . . . Terminal Hacks 4 | . . 2 2 Prototype ID Bank 1 | . . 1 . Emergency Access Points 1 | . . . 1 Hauler Manifests 1 | . . 1 . Zone Layout 1 | . . . 1 Fabricator Hacks . | . . . . Repair Station Hacks . | . . . . Recycling Unit Hacks . | . . . . Scanalyzer . | . . . . Garrison Access Hacks . | . . . . Unauthorized Hacks . | . . . . Terminals . | . . . . Fabricators . | . . . . Repair Stations . | . . . . Recycling Units . | . . . . Scanalyzers . | . . . . Garrison Access . | . . . . Data Cores Recovered . | . . . . Used . | . . . . Hacking Detections 5 | . 1 3 1 Full Trace Events 1 | . . 1 . Feedback Events . | . . . . Feedback Blocked . | . . . . Robot Schematics Acquired . | . . . . Robots Built . | . . . . Authchips . | . . . . Time . | . . . . Total Robot Build Rating . | . . . . Part Schematics Acquired . | . . . . Parts Built . | . . . . Authchips . | . . . . Time . | . . . . Total Part Build Rating . | . . . . Parts Repaired . | . . . . Time . | . . . . Parts Recycled . | . . . . Recycled Matter . | . . . . Retrieved Matter . | . . . . Retrieved Components . | . . . . Parts Scanalyzed . | . . . . Part Schematics Acquired . | . . . . Parts Damaged . | . . . . Bothacking | -11 -10 -9 -8 ------------ Run | Yrd Mat Mat Mat Used RIF Installer . | . . . . Robots Hacked . | . . . . Non-combat . | . . . . Combat . | . . . . Robot Hacks Applied . | . . . . Relay Couplers Released . | . . . . Fabnet Peak Effective % . | . . . . Robots Rewired . | . . . . Allies Hacked . | . . . . Hacks Repelled . | . . . . Allies | -11 -10 -9 -8 -------- Run | Yrd Mat Mat Mat Total Allies . | . . . . Largest Group . | . . . . Highest-Rated Group . | . . . . Highest-Rated Ally . | . . . . Total Orders . | . . . . Ally Attacks . | . . . . Total Damage . | . . . . Kills . | . . . . Allies Corrupted . | . . . . Allies Melted . | . . . . Intel | -11 -10 -9 -8 ------- Run | Yrd Mat Mat Mat Robot Analysis Total . | . . . . Derelict Logs Recovered . | . . . . Drone Launches . | . . . . Drone Recoveries . | . . . . Exploration | -11 -10 -9 -8 ------------- Run | Yrd Mat Mat Mat Turns Passed 2313 | 39 440 1005 829 Spaces Moved 1332 | 37 301 604 390 Core 66 | 22 . 3 41 Treads 349 | . . . 349 Legs 712 | . 232 480 . Wheels 205 | 15 69 121 . Hover . | . . . . Flight . | . . . . Fastest Speed 50 | 50 90 50 50 Average Speed 140 | 66 113 116 206 Slowest Speed 900 | 90 120 190 900 Overloaded Moves . | . . . . Propulsion Burnouts . | . . . . Robots Hopped . | . . . . Cave-ins Triggered . | . . . . Exploration Rate (%) 29 | 3 44 43 27 Regions Visited 3 Branch Regions . Pre-discovered Areas . | . . . . Known Exits Taken . | . . . . Unknown Exits Taken 3 | 1 1 1 . Scrap Searched . | . . . . Spaces Dug . | . . . . Terrain Destroyed 46 | . . 46 . Melee . | . . . . Projectile . | . . . . AOE 46 | . . 46 . Terrain Rammed . | . . . . Walls Destroyed . | . . . . Machines Disabled . | . . . . Actions | -11 -10 -9 -8 --------- Run | Yrd Mat Mat Mat Total 1628 | 51 368 793 416 Wait 88 | . 26 57 5 Move 1329 | 36 300 603 390 Hop . | . . . . Pick Up 47 | 7 10 21 9 Fast Attach 3 | 1 . . 2 Attach 23 | 5 3 11 4 Detach . | . . . . Swap 14 | . 3 9 2 Drop 17 | 2 3 10 2 Fire 85 | . 16 68 1 Melee . | . . . . Ram 8 | . 7 1 . Kick 13 | . . 13 . Crush 1 | . . . 1 Escape Stasis . | . . . . Rewire . | . . . . Trap . | . . . . Miscellaneous . | . . . . Route ------- -11/Scrapyard -10/Materials (discovered 2 exits: *Mat / [*Min]) -9/Materials (discovered 2 exits: *Mat / [*Min]) -8/Materials (discovered 2 exits: [*Sto x2]) History --------- Turn | Location | Event 4 | -11/Scrapyard | Discovered new exit (range 15) 40 | -11/Scrapyard | Entered Materials 311 | -10/Materials | Discovered new exit (range 6) 452 | -10/Materials | Build established: Scavenger-Mutant 460 | -10/Materials | Discovered new exit (range 16) 480 | -10/Materials | Entered another Materials area 480 | -9/Materials | Evolved 2 slots: Propulsion x1, Utility x1 958 | -9/Materials | Discovered new exit (range 8) 1391 | -9/Materials | Lost 4 parts (1n3u) 1466 | -9/Materials | Discovered new exit (range 16) 1480 | -9/Materials | Core integrity fell below 50% 1485 | -9/Materials | Entered another Materials area 1485 | -8/Materials | Evolved 2 slots: Propulsion x1, Utility x1 1514 | -8/Materials | Lost 4 parts (2n2w) 1624 | -8/Materials | Build established: Mutant 1628 | -8/Materials | Discovered new exit (range 12) 2237 | -8/Materials | Discovered new exit (range 5) 2284 | -8/Materials | Core integrity fell below 50% 2302 | -8/Materials | Lost 5 parts (1n2u2w) 2304 | -8/Materials | Core integrity fell below 20% 2314 | -8/Materials | Destroyed by Y-45 Defender with Beam Rifle Last Messages --------------- 01866_ Acquired Prc. Shock Rifle. 01887_ Acquired Adv. ECM Suite. 01894_ K-01 Serf collects debris. 02001_ Acquired Com. Matter Pod. 02193_ Connecting with Terminal... >>Access(Emergency) Found 2 emergency access doors: (32,29) (39,26) Map updated. 02223_ G-47 Trooper misfires. 02237_ EXIT=FOUND 02251_ Critical hit (Burn: +37). 02251_ Recoil Stabilizer destroyed. 02253_ Prc. Shock Rifle destroyed. 02261_ Imp. Heat Sink destroyed. 02261_ Critical hit (Burn: +37). 02263_ Prc. Shock Rifle destroyed. 02271_ Adv. Treads destroyed. 02304_ Critical hit (Burn: +37). Map ----- +----------------------------------------------------+ | ?????????????????????????????????????????????????? | | ?????????????????????????????????????????????????? | | ?????????????????????????????????????????????????? | | ?????????????????????????????????????????????????? | | ?????????????????????????????????????????????????? | | ?????????????????????????????????????????????????? | | ?????????????????????????????????????????????????? | | ???? ???????????????????????????????????????????? | | ??? ??????????????????????????????????????????? | | ??? ??????????????????????????????????????????? | | ???# #??????????????????????????????????????????? | | ???# #??????????????????????????????????????????? | | ???+ #???##?????????????????????????????????????? | | ???# #?? ?????????????????????????????????????? | | ???# #?= ??????????????????????????????????????? | | ???# # ???????????????????????????????????????? | | ???# # "????????????????????????????????????????? | | ???# + ?????????????????????????????????????????? | | ???# #??????????????????????????????????????????? | | ??## ##############?????????????????????????????? | | ### # """ """ T #?????????????????????????????? | | # """ """ #?????????????????????????????? | | T + """ """ #??????+#?????????????????????? | | +## # #?????? #?????????????????????? | | ###### ####### #?????????????????????? | | #????# gg @ #?????????????????????? | | #????# Y #########?????????????????????? | | #????###+#########?????????????????????????????? | | #??????# #?????????????????????????????????????? | | #?????? ?????????????????????????????????????? | | #?????? ?????????????????????????????????????? | | #?????? < ?????????????????????????????????????? | | #?????? ?????????????????????????????????????? | | ###????? ????????????????????????????????????? | | #???????#####????????????????????????????????????? | | #????????????????????????????????????????????????? | | #????????????????????????????????????????????????? | | ##???????????????????????????????????????????????? | | #######?????????????????????????????????????????? | | +????????????????????????????????????????? | | ########?????????????????????????????????????????? | | #????????????????????????????????????????????????? | | #????????????????????????????????????????????????? | | #????????????????????????????????????????????????? | | #????????????????????????????????????????????????? | | #????????????????????????????????????????????????? | | #????????????????????????????????????????????????? | | #????????????????????????????????????????????????? | | #????????????????????????????????????????????????? | | #????????????????????????????????????????????????? | +----------------------------------------------------+ Best States ------------- Heat Dissipation 45 Energy Generation 10 Energy Capacity 250 Matter Stores 300 Matter Capacity 300 Sight Range 16 Terrain Scan Density 10 ECM Strength 1 Armor Coverage 150 Evasion (%) 55 Recoil Reduction 5 Item Schematics ----------------- None Robot Schematics ------------------ None Fabricated ------------ Nothing Alien Tech Used ----------------- None Achievements -------------- None Challenges ------------ None Game ------ Seed SupersonicMassFilter Manual? 0 Play Time 00:22:25 Cumulative 52.6 hours Start 2024.07.11 @ 12:00:39 End 2024.07.11 @ 12:23:26 Sessions 1 Manual Loads 0 Difficulty Rogue Special Mode None Game No. 144 Rogue 144 Adventurer 0 Explorer 0 Win Type - Total 0 Types 0/0/0/0/0/0/0/0/0 Lore% 22 Gallery% 40 Achievement% 26 Wizard Run 0 Options --------- Layout 0 ASCII 0 Keyboard 0 Movement Arrows Keybinds 0 Fullscreen 1 Font 12/Smallcaps Map View 38x28 Zoom Use 100% Tactical HUD 1 Map Filters NONE Filters NONE Steam SD RUN: 99731346-7562-4557-b4c2-55ea83fc32c8